Cogmind - Beta 16.1 @@@ ROGUE MODE // 2026.01.24 @ 19:44:14 Player: szymekc Result: Self-destructed Performance ------------- Evolutions (0) 0 Regions Visited (4) 800 Robots Destroyed (0) 0 Value Destroyed (0) 0 Prototype IDs (2) 40 Alien Tech Used (0) 0 Bonus (0) 0 TOTAL SCORE: 840 Bonus ------- None Cogmind --------- Core Integrity 120/250 Matter 248/300 Energy 22/100 System Corruption 0% Temperature Cool (0) Movement Core (50) Location -9/Mines Parts ------- > --- POWER (1) -------- (None) > --- PROPULSION (2) --- (None) > --- UTILITY (2) ------ (None) > --- WEAPON (2) ------- Improved Assault Rifle > --- INVENTORY (5) ---- Improved Assault Rifle Rocket Launcher Heavy Hammer Peak State ------------ > --- POWER ------------ (None) > --- PROPULSION ------- VTOL Module VTOL Module > --- UTILITY ---------- Experimental Sensor Array > --- WEAPON ----------- Improved Assault Rifle Improved Assault Rifle > --- INVENTORY -------- VTOL Module VTOL Module Rocket Launcher [Rating: 19] Favorites ----------- Power None Propulsion VTOL Module Flight Unit VTOL Module Utility Experimental Sensor Array Device Experimental Sensor Array Weapon Improved Assault Rifle Ballistic Gun Improved Assault Rifle Build | -11 -10 -10 -10 -9 ------- Run | Yrd Mat Min Exi Min Slots Evolved . | . . . . . Power . | . . . . . Propulsion . | . . . . . Utility . | . . . . . Weapon . | . . . . . Parts Attached 7 | . 4 1 . 2 Power . | . . . . . Engine . | . . . . . Core . | . . . . . Reactor . | . . . . . Propulsion 4 | . 2 . . 2 Treads . | . . . . . Leg . | . . . . . Wheel . | . . . . . Hover . | . . . . . Flight 4 | . 2 . . 2 Utility 1 | . . 1 . . Device 1 | . . 1 . . Storage . | . . . . . Processor . | . . . . . Hackware . | . . . . . Protection . | . . . . . Artifact . | . . . . . Weapon 2 | . 2 . . . Energy Gun . | . . . . . Energy Cannon . | . . . . . Ballistic Gun 2 | . 2 . . . Ballistic Cannon . | . . . . . Launcher . | . . . . . Special Weapon . | . . . . . Impact Weapon . | . . . . . Slashing Weapon . | . . . . . Piercing Weapon . | . . . . . Special Melee Weapon . | . . . . . Unidentified Prototypes 2 | . 1 1 . . Parts Lost 5 | . . . . 5 Power . | . . . . . Propulsion 4 | . . . . 4 Utility 1 | . . . . 1 Weapon . | . . . . . Highest Loss Streak 5 | . . . . 5 To Critical Strikes . | . . . . . Average Backups 2 | . 1 2 3 3 Power . | . . . . . Propulsion 1 | . 1 2 2 1 Utility . | . . . . . Weapon 1 | . . . 1 2 Tool/Special . | . . . . . Unused Backups 2 | . . . . 2 Power . | . . . . . Propulsion . | . . . . . Utility . | . . . . . Weapon 2 | . . . . 2 Tool/Special . | . . . . . Average Slot Usage (%) 62 | . 35 61 71 71 Flight 27 | . 21 28 28 28 Device 7 | . . 4 14 14 Ballistic Gun 26 | . 14 28 28 28 Peak Build Rating 19 | . 10 19 19 19 Average Rating 14 | . 7 13 19 18 On Entrance 9 | . . 10 19 19 Avg Prop Armor Cover (%) . | . . . . . Naked Turns 5 | . 5 . . . Heaviest Build 7 | . 6 7 7 7 Greatest Support 8 | 3 8 8 8 8 Greatest Overweight (x) . | . . . . . Average Overweight (x) . | . . . . . Largest Inventory Capacity 5 | 5 5 5 5 5 Average Capacity 5 | 5 5 5 5 5 Most Carried 4 | . 2 3 3 4 Average Carried 2 | . 1 2 3 3 Final Capacity 5 | 5 5 5 5 5 Final Carried 3 | . 2 3 3 3 Class Distribution -------------------- 100% | Sprinter Dominant Class ---------------- Sprinter | -10/Mines Sprinter | -10/Exiles Sprinter | -9/Mines Resources | -11 -10 -10 -10 -9 ----------- Run | Yrd Mat Min Exi Min Matter Collected 193 | 193 . . . . Remotely . | . . . . . Salvage Created . | . . . . . Parts . | . . . . . Haulers Intercepted . | . . . . . Recyclers Shooed . | . . . . . Parts Field Recycled . | . . . . . Retrieved Matter . | . . . . . Parts Self-Destructed . | . . . . . Prevented . | . . . . . Parts Restored . | . . . . . Kills | -11 -10 -10 -10 -9 ------- Run | Yrd Mat Min Exi Min Combat Hostiles Destroyed . | . . . . . Classes Destroyed . | . . . . . Best Kill Streak . | . . . . . Combat Bots Only . | . . . . . Max Kills in Single Turn . | . . . . . Gunslinging . | . . . . . Exploded . | . . . . . Melee . | . . . . . Uniques/NPCs Destroyed . | . . . . . Combat | -11 -10 -10 -10 -9 -------- Run | Yrd Mat Min Exi Min Hostile Shots Fired 81 | . 1 5 . 75 Missed 37 | . 1 2 . 34 Hits 44 | . . 3 . 41 Melee 1 | . . . . 1 Projectile 43 | . . 3 . 40 Critical Strikes 1 | . . . . 1 Damage Taken 427 | . . 39 . 388 Core 130 | . . . . 130 Absorbed by Shields . | . . . . . Core Remaining (%) 100 | 100 . . . . Volleys Fired . | . . . . . Largest . | . . . . . Hottest . | . . . . . Shots Fired . | . . . . . Gun . | . . . . . Cannon . | . . . . . Launcher . | . . . . . Special . | . . . . . Kinetic . | . . . . . Thermal . | . . . . . Explosive . | . . . . . Electromagnetic . | . . . . . Robot Hit Streak . | . . . . . Robot Miss Streak . | . . . . . Penetration Max . | . . . . . Secondary Targets . | . . . . . Shots Hit Robots . | . . . . . Core Hits . | . . . . . Critical Kills . | . . . . . Critical Parts Destroyed . | . . . . . Critical Strikes . | . . . . . Melee Attacks . | . . . . . Impact . | . . . . . Slashing . | . . . . . Piercing . | . . . . . Sneak Attacks . | . . . . . Combat Hostiles . | . . . . . Follow-up Attacks . | . . . . . Damage Inflicted . | . . . . . Guns . | . . . . . Cannons . | . . . . . Explosions . | . . . . . Melee . | . . . . . Ramming . | . . . . . Kinetic . | . . . . . Thermal . | . . . . . Explosive . | . . . . . Electromagnetic . | . . . . . Impact . | . . . . . Slashing . | . . . . . Piercing . | . . . . . Highest Corruption . | . . . . . Average Corruption . | . . . . . Corruption Purged . | . . . . . Corruption Blocked . | . . . . . Overload Shots . | . . . . . Overflow Damage . | . . . . . Projectiles . | . . . . . Explosions . | . . . . . Melee . | . . . . . Knockbacks . | . . . . . Impact . | . . . . . Kinetic . | . . . . . Secondary . | . . . . . Self-Inflicted Damage . | . . . . . Shots . | . . . . . Rammed . | . . . . . Targets Rammed . | . . . . . Kicked . | . . . . . Crushed . | . . . . . Highest Temperature . | . . . . . Average Temperature . | . . . . . Received Heat Transfer 21 | . . 21 . . Siege Activations . | . . . . . Martial Activations . | . . . . . Shielding Activations . | . . . . . Robots Disrupted . | . . . . . Combat Hostiles . | . . . . . Robots Corrupted . | . . . . . Combat Hostiles . | . . . . . Parts Fried . | . . . . . Impact Corruptions . | . . . . . Robots Melted . | . . . . . Combat Hostiles . | . . . . . Parts Melted . | . . . . . Heat Transferred . | . . . . . Parts Sabotaged . | . . . . . Parts Stolen . | . . . . . Parts Stripped . | . . . . . Power Chain Reactions . | . . . . . Alert | -11 -10 -10 -10 -9 ------- Run | Yrd Mat Min Exi Min Maximum Alert Level . | . . . . . Low Security (%) 100 | 100 100 100 . 100 Level 1 . | . . . . . Level 2 . | . . . . . Level 3 . | . . . . . Level 4 . | . . . . . Level 5 . | . . . . . High Security . | . . . . . Max Security . | . . . . . Peak Influence 30 | . 14 30 . 20 Initial 5 | . . 5 . . Average 4 | . 5 6 . 2 Influence Increases 74 | . 14 30 . 30 Successful Hack 14 | . 14 . . . Lose Combat Pursuer 60 | . . 30 . 30 Influence Decreases 74 | . . 34 10 30 Entered New Map 19 | . . 9 10 . Time Decay 35 | . . 25 . 10 Lost Part 20 | . . . . 20 Squads Dispatched . | . . . . . Investigation . | . . . . . Extermination . | . . . . . Reinforcement . | . . . . . Assault . | . . . . . Garrison . | . . . . . Intercept . | . . . . . Searches Triggered . | . . . . . Construction Impeded . | . . . . . Haulers Reinforced . | . . . . . Active Scanning Responses . | . . . . . Cargo Convoy Interrupts . | . . . . . Stealth | -11 -10 -10 -10 -9 --------- Run | Yrd Mat Min Exi Min Distress Signals 1 | . 1 . . . Communications Jammed . | . . . . . Distress Signals . | . . . . . Times Spotted 18 | . 2 2 . 14 Peak Tracking Total 11 | . 2 2 . 11 Tactical Retreats 2 | . . 1 . 1 Traps | -11 -10 -10 -10 -9 ------- Run | Yrd Mat Min Exi Min Traps Triggered . | . . . . . Indirectly . | . . . . . Trap Hack Attempts . | . . . . . Triggered . | . . . . . Disarmed . | . . . . . Reprogrammed . | . . . . . Reused . | . . . . . Traps Extracted . | . . . . . Installed . | . . . . . Triggered . | . . . . . Machines | -11 -10 -10 -10 -9 ---------- Run | Yrd Mat Min Exi Min Machines Disabled . | . . . . . Max in Single Turn . | . . . . . Machines Repaired . | . . . . . Machines Dismantled . | . . . . . Machines Sabotaged . | . . . . . Overloaded Fab Kills . | . . . . . Hacking | -11 -10 -10 -10 -9 --------- Run | Yrd Mat Min Exi Min Machines Accessed 2 | . 1 . 1 . Terminals 1 | . 1 . . . Fabricators . | . . . . . Repair Stations . | . . . . . Recycling Units . | . . . . . Scanalyzers . | . . . . . Garrison Access . | . . . . . Total Hacks 4 | . 3 . 1 . Successful 3 | . 2 . 1 . Failed 1 | . 1 . . . Catastrophic . | . . . . . Database Lockouts . | . . . . . Manual 3 | . 3 . . . Terminals 3 | . 3 . . . Fabricators . | . . . . . Repair Stations . | . . . . . Recycling Units . | . . . . . Scanalyzers . | . . . . . Garrison Access . | . . . . . Terminal Hacks 3 | . 2 . 1 . Record 1 | . . . 1 . Branch Access Points 1 | . 1 . . . Zone Layout 1 | . 1 . . . Fabricator Hacks . | . . . . . Repair Station Hacks . | . . . . . Recycling Unit Hacks . | . . . . . Scanalyzer . | . . . . . Garrison Access Hacks . | . . . . . Unauthorized Hacks . | . . . . . Terminals . | . . . . . Fabricators . | . . . . . Repair Stations . | . . . . . Recycling Units . | . . . . . Scanalyzers . | . . . . . Garrison Access . | . . . . . Data Cores Recovered . | . . . . . Used . | . . . . . Hacking Detections 1 | . 1 . . . Full Trace Events . | . . . . . Feedback Events . | . . . . . Feedback Blocked . | . . . . . Robot Schematics Acquired . | . . . . . Robots Built . | . . . . . Authchips . | . . . . . Time . | . . . . . Total Robot Build Rating . | . . . . . Part Schematics Acquired . | . . . . . Parts Built . | . . . . . Authchips . | . . . . . Time . | . . . . . Total Part Build Rating . | . . . . . Part Studies Acquired . | . . . . . Parts Repaired . | . . . . . Time . | . . . . . Parts Recycled . | . . . . . Recycled Matter . | . . . . . Retrieved Matter . | . . . . . Retrieved Components . | . . . . . Parts Scanalyzed . | . . . . . Part Schematics Acquired . | . . . . . Parts Damaged . | . . . . . Bothacking | -11 -10 -10 -10 -9 ------------ Run | Yrd Mat Min Exi Min Used RIF Installer . | . . . . . Robots Hacked . | . . . . . Non-combat . | . . . . . Combat . | . . . . . Robot Hacks Applied . | . . . . . Relay Couplers Released . | . . . . . Fabnet Peak Effective % . | . . . . . Robots Rewired . | . . . . . Allies Hacked . | . . . . . Hacks Repelled . | . . . . . Allies | -11 -10 -10 -10 -9 -------- Run | Yrd Mat Min Exi Min Total Allies . | . . . . . Largest Group . | . . . . . Highest-Rated Group . | . . . . . Highest-Rated Ally . | . . . . . Total Orders . | . . . . . Ally Attacks . | . . . . . Total Damage . | . . . . . Kills . | . . . . . Allies Corrupted . | . . . . . Allies Melted . | . . . . . Intel | -11 -10 -10 -10 -9 ------- Run | Yrd Mat Min Exi Min Active Infowar (turns) 110 | . . 42 6 62 Sensors 110 | . . 42 6 62 Robot Analysis Total . | . . . . . Derelict Logs Recovered 3 | . . 2 . 1 Drone Launches . | . . . . . Drone Recoveries . | . . . . . Exploration | -11 -10 -10 -10 -9 ------------- Run | Yrd Mat Min Exi Min Turns Passed 288 | 10 32 125 41 80 Spaces Moved 827 | 20 71 380 127 229 Core 28 | 20 8 . . . Treads . | . . . . . Legs . | . . . . . Wheels . | . . . . . Hover . | . . . . . Flight 799 | . 63 380 127 229 Fastest Speed 32 | 50 32 32 32 32 Average Speed 32 | 50 34 32 32 32 Slowest Speed 50 | 50 50 32 32 35 Overloaded Moves . | . . . . . Propulsion Burnouts . | . . . . . Robots Hopped 19 | . 1 7 . 11 Potential Cave-ins . | . . . . . Cave-ins Triggered . | . . . . . Exploration Rate (%) 45 | 3 21 84 48 73 Regions Visited 4 Branch Regions 3 Pre-discovered Areas 1 | . . . 1 . Known Exits Taken 1 | . 1 . . . Unknown Exits Taken 3 | 1 . 1 1 . Scrap Searched 3 | . . 1 . 2 Spaces Dug . | . . . . . Terrain Destroyed . | . . . . . Melee . | . . . . . Projectile . | . . . . . AOE . | . . . . . Terrain Rammed . | . . . . . Walls Destroyed . | . . . . . Machines Disabled . | . . . . . Actions | -11 -10 -10 -10 -9 --------- Run | Yrd Mat Min Exi Min Total 819 | 19 75 375 126 224 Wait 3 | . . 1 . 2 Move 791 | 19 68 366 126 212 Hop 13 | . 1 6 . 6 Pick Up 4 | . 2 1 . 1 Fast Attach 5 | . 4 1 . . Attach 2 | . . . . 2 Detach 1 | . . . . 1 Swap . | . . . . . Drop . | . . . . . Fire . | . . . . . Melee . | . . . . . Ram . | . . . . . Kick . | . . . . . Crush . | . . . . . Escape Stasis . | . . . . . Rewire . | . . . . . Trap . | . . . . . Miscellaneous . | . . . . . Route ------- -11/Scrapyard -10/Materials -10/Mines (discovered 3 exits: [*Mat x2] / *Exi) -10/Exiles -9/Mines History --------- Turn | Location | Event 4 | -11/Scrapyard | Discovered new exit (range 16) 11 | -11/Scrapyard | Entered Materials 31 | -10/Materials | Identified exit to Mines 43 | -10/Materials | Entered Mines 52 | -10/Mines | Discovered new exit (range 6) 55 | -10/Mines | Received a Rocket Launcher from a helpful Derelict 70 | -10/Mines | A weapon hastily lodged in a ceiling crevice suddenly fell to the ground 125 | -10/Mines | Found a damaged Exp. Sensor Array with a note attached 126 | -10/Mines | Found Prototype Device 126 | -10/Mines | Identified Exp. Sensor Array 153 | -10/Mines | Learned Materials stockpile data 153 | -10/Mines | Discovered new exit (range 13) 160 | -10/Mines | Learned Materials garrison access intel 167 | -10/Mines | Deemed a non-threat by the Exiles lab entrance 167 | -10/Mines | Discovered new exit (range 5) 168 | -10/Mines | Entered Exiles 168 | -10/Exiles | Found Exiles lab destroyed 196 | -10/Exiles | Learned location of Zion (-6) 205 | -10/Exiles | Discovered new exit (range 12) 209 | -10/Exiles | Entered Mines 224 | -9/Mines | Assembled infested the area 225 | -9/Mines | Learned Materials stockpile data 289 | -9/Mines | Core integrity fell below 50% 289 | -9/Mines | Self-destructed Last Messages --------------- 00211_ Found Hvy. Hammer. 00211_ Found 33 Matter. 00211_ Acquired Hvy. Hammer. 00213_ T-07 Excavator is excavating. 00224_ ALERT: Infestation in the mines, dispatching Demolisher response squad. 00225_ Acquired derelict log, extracted data. Data stored: Materials stockpile data. 00229_ Searching scrap... 00229_ Found Mni. Grenade Launcher. 00229_ Found Hrd. Light Armor Plating. 00229_ Found Lgt. Ion Engine. 00229_ Found Wheel. 00229_ Found 41 Matter. 00255_ S-10 Pest suffers critical hit (Destroy). 00255_ S-10 Pest destroyed. 00268_ T-07 Excavator is excavating. 00273_ VTOL Module destroyed. 00288_ Exp. Sensor Array destroyed. 00288_ VTOL Module destroyed. Map ----- +----------------------------------------------------+ | | | | | | | | | ?????????????????????????????????????????? | | ?????????????????????????????????????????? | | ####?????????????????????????????????????? | | ##????????????????????????????????????? | | ###??????????????????????????????????? | | ##?????????????????????????????????? | | #?????????????????????????????????? | | #############?????????????????????? | | #?????????????????????? | | ## ######### #?????????????????????? | | #### #???????????????????????????????? | | ##??# #???????????????????????????????? | | ????## ##???????????????######??????????? | | ?????# #???????????????## ##?????????? | | #????# #???????????????# #?????????? | | ###??# ###?????????????# #?????????? | | ##?# ##?????????????# #??????????? | | ### ##???????????## ###??????????? | | ## ##???????#### ##????????????? | | ######### #?????????????? | | s ss a #?????????????? | | ss s @ #?????????????? | | ## s #?????????????? | | #### # ## #????????????? | | ##??# ## ### #???????????? | | # ###???## ## #?### ?????????? | | # #??????## ## #???## ??????? | | #???????## ### #????# #?????? | | #????????####?# #????# ##?????? | | ###?????????????# #????## #??????? | | ????????????????# #?????? a #??????? | | ????????????????# #?????? a ??????? | | ????????????????# #??????# #?????? | | ????????????????# #???????### a ??????? | | ????????????????# #??????????a ????????? | | ????????????????? ??????????????????????? | | ?????????????????????????????????????????? | | ?????????????????????????????????????????? | | ?????????????????????????????????????????? | | ?????????????????????????????????????????? | | ?????????????????????????????????????????? | | ?????????????????????????????????????????? | | ?????????????????????????????????????????? | | ?????????????????????????????????????????? | | ####?????????????????????????????????????? | | #?????????????????????????????????????? | +----------------------------------------------------+ Best States ------------- Heat Dissipation 25 Energy Generation 5 Energy Capacity 100 Matter Stores 273 Matter Capacity 300 Sight Range 16 Robot Scan Range 20 Terrain Scan Density 10 Evasion (%) 63 Item Schematics ----------------- None Robot Schematics ------------------ None Fabricated ------------ Nothing Repaired ---------- Nothing Studied --------- None Alien Tech Used ----------------- None Achievements -------------- None Challenges ------------ None Game ------ Seed FieldDataCalibrator Manual? 0 Play Time 00:04:44 Cumulative 1109.1 hours Start 2026.01.24 @ 19:40:41 End 2026.01.24 @ 19:44:14 Sessions 1 Manual Loads 0 Difficulty Rogue Special Mode None Game No. 341 Rogue 339 Adventurer 2 Explorer 0 Win Type - Total 82 Types 22/19/19/1/1/1/14/2/1/2 Lore% 97 Gallery% 95 Achievement% 86 Wizard Run 0 Options --------- Layout 0 ASCII 0 Keyboard 1 Movement Numpad Keybinds 0 Fullscreen 1 Font 24/Smallcaps Map View 76x50 Zoom Use 0% Tactical HUD 1 Map Filters NONE Filters NONE Steam 1 RUN: 19f2c3b7-a090-4010-82ee-7ba2d1f5a7dd